[Event "Titled Tuesday Blitz August 15 Early 2023"]
[White "carokannlover213"]
[Black "Bazilius, Augustinas"]
[BlackFideId "12832251"]
[WhiteElo "2720"]
[BlackElo "2438"]
[Result "1-0"]
[Round "2"]
[TimeControl "180+1"]
[Date "2023.08.15"]
[WhiteClock "0:00:55"]
[BlackClock "0:00:12"]
[Board "79"]

1. c4 {[%clk 0:03:00]}  Nf6 {[%clk 0:02:56]} 2. Nf3 {[%clk 0:02:57]}  c5 {[%clk 0:02:56]} 3. Nc3 {[%clk 0:02:57]}  d5 {[%clk 0:02:55]} 4. cxd5 {[%clk 0:02:55]}  Nxd5 {[%clk 0:02:56]} 5. d4 {[%clk 0:02:54]}  Nxc3 {[%clk 0:02:53]} 6. bxc3 {[%clk 0:02:54]}  e6 {[%clk 0:02:54]} 7. e4 {[%clk 0:02:54]}  cxd4 {[%clk 0:02:50]} 8. cxd4 {[%clk 0:02:55]}  Nc6 {[%clk 0:02:51]} 9. Bc4 {[%clk 0:02:47]}  Bb4+ {[%clk 0:02:51]} 10. Bd2 {[%clk 0:02:44]}  Bxd2+ {[%clk 0:02:51]} 11. Qxd2 {[%clk 0:02:45]}  O-O {[%clk 0:02:47]} 12. O-O {[%clk 0:02:45]}  b6 {[%clk 0:02:48]} 13. Rfd1 {[%clk 0:02:42]}  Bb7 {[%clk 0:02:48]} 14. Rac1 {[%clk 0:02:39]}  Rc8 {[%clk 0:02:47]} 15. Qe3 {[%clk 0:02:39]}  Na5 {[%clk 0:02:43]} 16. Bd3 {[%clk 0:02:38]}  Qe7 {[%clk 0:02:38]} 17. h4 {[%clk 0:02:38]}  Rxc1 {[%clk 0:02:36]} 18. Rxc1 {[%clk 0:02:37]}  Rc8 {[%clk 0:02:37]} 19. Rd1 {[%clk 0:02:37]}  Nc4 {[%clk 0:02:35]} 20. Qe2 {[%clk 0:02:35]}  b5 {[%clk 0:02:27]} 21. h5 {[%clk 0:02:24]}  h6 {[%clk 0:02:23]} 22. Bb1 {[%clk 0:02:24]}  Na3 {[%clk 0:02:14]} 23. Bd3 {[%clk 0:02:18]}  a6 {[%clk 0:02:11]} 24. Ne5 {[%clk 0:02:11]}  Rd8 {[%clk 0:01:54]} 25. Qe3 {[%clk 0:01:55]}  Qd6 {[%clk 0:01:30]} 26. Ng4 {[%clk 0:01:39]}  Qxd4 {[%clk 0:01:21]} 27. Be2 {[%clk 0:01:34]}  Qxd1+ {[%clk 0:01:13]} 28. Bxd1 {[%clk 0:01:35]}  Rxd1+ {[%clk 0:01:14]} 29. Kh2 {[%clk 0:01:35]}  Nc4 {[%clk 0:01:05]} 30. Qg3 {[%clk 0:01:34]}  Kh7 {[%clk 0:00:55]} 31. f3 {[%clk 0:01:18]}  Rd7 {[%clk 0:00:46]} 32. Qf4 {[%clk 0:01:10]}  a5 {[%clk 0:00:41]} 33. Ne5 {[%clk 0:01:00]}  Nxe5 {[%clk 0:00:38]} 34. Qxe5 {[%clk 0:01:01]}  Bd5 {[%clk 0:00:20]} 35. exd5 {[%clk 0:00:59]}  Rxd5 {[%clk 0:00:21]} 36. Qe4+ {[%clk 0:00:59]}  g6 {[%clk 0:00:15]} 37. hxg6+ {[%clk 0:00:59]}  fxg6 {[%clk 0:00:16]} 38. Qxe6 {[%clk 0:00:59]}  Rh5+ {[%clk 0:00:14]} 39. Kg1 {[%clk 0:00:58]}  b4 {[%clk 0:00:12]} 40. Qf7+ {[%clk 0:00:55]} 1-0


[Site "https://www.chess.com"]

[Event "Titled Tuesday Blitz August 15 Early 2023"]
[White "Bueno, Alfeu Junior Varela"]
[Black "GaiozNigalidze"]
[WhiteFideId "2108879"]
[WhiteElo "2424"]
[BlackElo "2708"]
[Result "1-0"]
[Round "2"]
[TimeControl "180+1"]
[Date "2023.08.15"]
[WhiteClock "0:00:03"]
[BlackClock "0:00:24"]
[Board "84"]

1. e4 {[%clk 0:03:00]}  c5 {[%clk 0:02:59]} 2. Nc3 {[%clk 0:03:01]}  Nc6 {[%clk 0:02:59]} 3. f4 {[%clk 0:03:01]}  e6 {[%clk 0:02:59]} 4. Bb5 {[%clk 0:03:00]}  Nge7 {[%clk 0:02:58]} 5. Nf3 {[%clk 0:03:00]}  a6 {[%clk 0:02:56]} 6. Bxc6 {[%clk 0:03:00]}  Nxc6 {[%clk 0:02:56]} 7. d3 {[%clk 0:03:00]}  d5 {[%clk 0:02:50]} 8. O-O {[%clk 0:03:01]}  d4 {[%clk 0:02:47]} 9. Ne2 {[%clk 0:03:00]}  Be7 {[%clk 0:02:47]} 10. a3 {[%clk 0:02:53]}  Qb6 {[%clk 0:02:29]} 11. Kh1 {[%clk 0:02:52]}  h6 {[%clk 0:02:29]} 12. Rb1 {[%clk 0:02:48]}  a5 {[%clk 0:02:29]} 13. Qe1 {[%clk 0:02:44]}  Bd7 {[%clk 0:02:28]} 14. Qg3 {[%clk 0:02:43]}  g6 {[%clk 0:02:22]} 15. Ne5 {[%clk 0:02:43]}  Qc7 {[%clk 0:02:00]} 16. Bd2 {[%clk 0:02:31]}  a4 {[%clk 0:01:55]} 17. Ng1 {[%clk 0:01:58]}  g5 {[%clk 0:01:49]} 18. Nxd7 {[%clk 0:01:41]}  Kxd7 {[%clk 0:01:35]} 19. Qh3 {[%clk 0:01:17]}  Raf8 {[%clk 0:01:09]} 20. f5 {[%clk 0:01:08]}  Ne5 {[%clk 0:01:00]} 21. c3 {[%clk 0:01:06]}  Bd6 {[%clk 0:00:33]} 22. cxd4 {[%clk 0:00:55]}  cxd4 {[%clk 0:00:33]} 23. Rfc1 {[%clk 0:00:55]}  Qb6 {[%clk 0:00:33]} 24. Bb4 {[%clk 0:00:37]}  Bxb4 {[%clk 0:00:29]} 25. axb4 {[%clk 0:00:38]}  Qxb4 {[%clk 0:00:28]} 26. Qg3 {[%clk 0:00:38]}  Qd6 {[%clk 0:00:26]} 27. Ne2 {[%clk 0:00:29]}  Nc6 {[%clk 0:00:24]} 28. Qh3 {[%clk 0:00:22]}  h5 {[%clk 0:00:23]} 29. Rc4 {[%clk 0:00:20]}  g4 {[%clk 0:00:23]} 30. Qh4 {[%clk 0:00:20]}  e5 {[%clk 0:00:23]} 31. Rbc1 {[%clk 0:00:14]}  Ra8 {[%clk 0:00:22]} 32. Ng3 {[%clk 0:00:12]}  a3 {[%clk 0:00:19]} 33. bxa3 {[%clk 0:00:12]}  Rxa3 {[%clk 0:00:20]} 34. f6 {[%clk 0:00:12]}  Qe6 {[%clk 0:00:18]} 35. Nf5 {[%clk 0:00:10]}  Rha8 {[%clk 0:00:18]} 36. Ng7 {[%clk 0:00:08]}  Qd6 {[%clk 0:00:17]} 37. Qxh5 {[%clk 0:00:08]}  Qxf6 {[%clk 0:00:17]} 38. Qxg4+ {[%clk 0:00:06]}  Kc7 {[%clk 0:00:17]} 39. Nh5 {[%clk 0:00:03]}  Qe6 {[%clk 0:00:17]} 40. Qg7 {[%clk 0:00:02]}  Rxd3 {[%clk 0:00:17]} 41. h3 {[%clk 0:00:02]}  Rd1+ {[%clk 0:00:16]} 42. Kh2 {[%clk 0:00:02]}  Qxc4 {[%clk 0:00:17]} 43. Rxc4 {[%clk 0:00:02]}  Rd3 {[%clk 0:00:17]} 44. Qxf7+ {[%clk 0:00:02]}  Kb6 {[%clk 0:00:17]} 45. Qd5 {[%clk 0:00:02]}  Rc3 {[%clk 0:00:18]} 46. Qc5+ {[%clk 0:00:03]}  Kc7 {[%clk 0:00:18]} 47. Rxc3 {[%clk 0:00:03]}  dxc3 {[%clk 0:00:19]} 48. Qxc3 {[%clk 0:00:04]}  Rh8 {[%clk 0:00:19]} 49. Ng7 {[%clk 0:00:04]}  Rh7 {[%clk 0:00:19]} 50. Ne6+ {[%clk 0:00:04]}  Kd6 {[%clk 0:00:20]} 51. Ng5 {[%clk 0:00:05]}  Rg7 {[%clk 0:00:20]} 52. Nf3 {[%clk 0:00:05]}  Rf7 {[%clk 0:00:20]} 53. Qc4 {[%clk 0:00:04]}  Re7 {[%clk 0:00:20]} 54. Qd5+ {[%clk 0:00:05]}  Kc7 {[%clk 0:00:21]} 55. Ng5 {[%clk 0:00:05]}  Rd7 {[%clk 0:00:21]} 56. Qe6 {[%clk 0:00:05]}  b5 {[%clk 0:00:21]} 57. Nf3 {[%clk 0:00:05]}  Re7 {[%clk 0:00:20]} 58. Qf6 {[%clk 0:00:04]}  b4 {[%clk 0:00:20]} 59. Nd2 {[%clk 0:00:04]}  Rd7 {[%clk 0:00:20]} 60. Nc4 {[%clk 0:00:04]}  b3 {[%clk 0:00:20]} 61. Nxe5 {[%clk 0:00:03]}  Rd6 {[%clk 0:00:19]} 62. Qf7+ {[%clk 0:00:03]}  Kc8 {[%clk 0:00:20]} 63. Nxc6 {[%clk 0:00:03]}  b2 {[%clk 0:00:20]} 64. Qb3 {[%clk 0:00:03]}  Rd2 {[%clk 0:00:20]} 65. Ne5 {[%clk 0:00:02]}  Rxg2+ {[%clk 0:00:21]} 66. Kxg2 {[%clk 0:00:02]}  b1=Q {[%clk 0:00:21]} 67. Qxb1 {[%clk 0:00:02]}  Kd8 {[%clk 0:00:22]} 68. Qd3+ {[%clk 0:00:03]}  Ke7 {[%clk 0:00:23]} 69. Qd7+ {[%clk 0:00:03]}  Kf8 {[%clk 0:00:24]} 70. Qf7# {[%clk 0:00:03]} 1-0


[Site "https://www.chess.com"]

[Event "Titled Tuesday Blitz August 15 Early 2023"]
[White "Grieve, Harry"]
[Black "Chyngyz, Sultai"]
[WhiteFideId "426520"]
[BlackFideId "13803158"]
[WhiteElo "2708"]
[BlackElo "2409"]
[Result "0-1"]
[Round "2"]
[TimeControl "180+1"]
[Date "2023.08.15"]
[WhiteClock "0:00:01"]
[BlackClock "0:00:31"]
[Board "85"]

1. e4 {[%clk 0:03:00]}  c5 {[%clk 0:02:59]} 2. Nf3 {[%clk 0:03:01]}  d6 {[%clk 0:03:00]} 3. d4 {[%clk 0:03:02]}  cxd4 {[%clk 0:03:01]} 4. Nxd4 {[%clk 0:03:02]}  Nf6 {[%clk 0:03:01]} 5. Nc3 {[%clk 0:03:03]}  a6 {[%clk 0:03:02]} 6. Bg5 {[%clk 0:03:03]}  e6 {[%clk 0:03:02]} 7. f4 {[%clk 0:03:04]}  Be7 {[%clk 0:03:03]} 8. Qf3 {[%clk 0:03:05]}  Qc7 {[%clk 0:03:03]} 9. O-O-O {[%clk 0:03:05]}  O-O {[%clk 0:03:03]} 10. g4 {[%clk 0:02:56]}  b5 {[%clk 0:03:03]} 11. Bxf6 {[%clk 0:02:54]}  Bxf6 {[%clk 0:03:02]} 12. g5 {[%clk 0:02:55]}  Bxd4 {[%clk 0:03:03]} 13. Rxd4 {[%clk 0:02:55]}  Nc6 {[%clk 0:03:04]} 14. Rd2 {[%clk 0:02:55]}  b4 {[%clk 0:03:04]} 15. Ne2 {[%clk 0:02:51]}  a5 {[%clk 0:03:04]} 16. h4 {[%clk 0:02:24]}  a4 {[%clk 0:02:43]} 17. Kb1 {[%clk 0:02:24]}  Bb7 {[%clk 0:02:29]} 18. h5 {[%clk 0:02:09]}  b3 {[%clk 0:02:25]} 19. cxb3 {[%clk 0:02:07]}  axb3 {[%clk 0:02:25]} 20. a3 {[%clk 0:02:08]}  Rfc8 {[%clk 0:02:03]} 21. Nc3 {[%clk 0:02:07]}  Ne7 {[%clk 0:01:54]} 22. g6 {[%clk 0:01:34]}  fxg6 {[%clk 0:01:52]} 23. hxg6 {[%clk 0:01:35]}  Nxg6 {[%clk 0:01:50]} 24. Bh3 {[%clk 0:01:03]}  Qf7 {[%clk 0:01:41]} 25. f5 {[%clk 0:00:56]}  exf5 {[%clk 0:01:38]} 26. Bxf5 {[%clk 0:00:53]}  Rf8 {[%clk 0:01:31]} 27. Qh5 {[%clk 0:00:47]}  h6 {[%clk 0:01:06]} 28. Bxg6 {[%clk 0:00:45]}  Qf4 {[%clk 0:01:05]} 29. Rg2 {[%clk 0:00:31]}  Rac8 {[%clk 0:00:58]} 30. Bf5 {[%clk 0:00:23]}  Rxf5 {[%clk 0:00:55]} 31. Qxf5 {[%clk 0:00:19]}  Qxf5 {[%clk 0:00:54]} 32. exf5 {[%clk 0:00:20]}  Bxg2 {[%clk 0:00:54]} 33. Rh4 {[%clk 0:00:17]}  Re8 {[%clk 0:00:53]} 34. Kc1 {[%clk 0:00:14]}  d5 {[%clk 0:00:51]} 35. Rd4 {[%clk 0:00:13]}  Re5 {[%clk 0:00:51]} 36. a4 {[%clk 0:00:12]}  Rxf5 {[%clk 0:00:43]} 37. a5 {[%clk 0:00:12]}  Rf6 {[%clk 0:00:35]} 38. Kd2 {[%clk 0:00:04]}  Rd6 {[%clk 0:00:34]} 39. Nd1 {[%clk 0:00:01]}  Be4 {[%clk 0:00:33]} 40. Ne3 {[%clk 0:00:01]}  h5 {[%clk 0:00:32]} 41. Kc3 {[%clk 0:00:01]}  h4 {[%clk 0:00:32]} 42. Rd2 {[%clk 0:00:01]}  h3 {[%clk 0:00:31]} 43. Kd4 {[%clk 0:00:01]}  Rh6 {[%clk 0:00:29]} 44. Rh2 {[%clk 0:00:02]}  g5 {[%clk 0:00:29]} 45. Ng4 {[%clk 0:00:02]}  Rh4 {[%clk 0:00:29]} 46. Nf6+ {[%clk 0:00:02]}  Kf7 {[%clk 0:00:29]} 47. Ke5 {[%clk 0:00:03]}  g4 {[%clk 0:00:29]} 48. Rf2 {[%clk 0:00:04]}  g3 {[%clk 0:00:28]} 49. Rf1 {[%clk 0:00:03]}  g2 {[%clk 0:00:28]} 50. Rc1 {[%clk 0:00:03]}  h2 {[%clk 0:00:28]} 51. Rc7+ {[%clk 0:00:03]}  Kg6 {[%clk 0:00:29]} 52. Ne8 {[%clk 0:00:04]}  g1=Q {[%clk 0:00:29]} 53. a6 {[%clk 0:00:02]}  Qg5+ {[%clk 0:00:29]} 54. Kd6 {[%clk 0:00:03]}  Qd8+ {[%clk 0:00:29]} 55. Rd7 {[%clk 0:00:03]}  Qb6+ {[%clk 0:00:30]} 56. Ke7 {[%clk 0:00:03]}  Qc5+ {[%clk 0:00:30]} 57. Rd6+ {[%clk 0:00:03]}  Qxd6+ {[%clk 0:00:29]} 58. Kxd6 {[%clk 0:00:03]}  h1=Q {[%clk 0:00:30]} 59. a7 {[%clk 0:00:01]}  Qa1 {[%clk 0:00:31]} 0-1


[Site "https://www.chess.com"]

[Event "Titled Tuesday Blitz August 15 Early 2023"]
[White "Vasques, Antonio Pedro Freixial"]
[Black "Alex_Sahakyan2006"]
[WhiteFideId "1908332"]
[WhiteElo "2352"]
[BlackElo "2698"]
[Result "0-1"]
[Round "2"]
[TimeControl "180+1"]
[Date "2023.08.15"]
[WhiteClock "0:00:08"]
[BlackClock "0:00:38"]
[Board "89"]

1. e4 {[%clk 0:03:00]}  c5 {[%clk 0:02:56]} 2. Nc3 {[%clk 0:03:00]}  Nc6 {[%clk 0:02:55]} 3. Bb5 {[%clk 0:03:00]}  Nd4 {[%clk 0:02:52]} 4. Nf3 {[%clk 0:03:00]}  a6 {[%clk 0:02:49]} 5. Bd3 {[%clk 0:02:55]}  e6 {[%clk 0:02:49]} 6. O-O {[%clk 0:02:54]}  Nc6 {[%clk 0:02:48]} 7. Re1 {[%clk 0:02:53]}  g5 {[%clk 0:02:47]} 8. h3 {[%clk 0:02:38]}  Bg7 {[%clk 0:02:46]} 9. e5 {[%clk 0:02:33]}  Qc7 {[%clk 0:02:11]} 10. Ne4 {[%clk 0:01:52]}  Nxe5 {[%clk 0:02:08]} 11. Nxe5 {[%clk 0:01:52]}  Bxe5 {[%clk 0:02:09]} 12. Nxg5 {[%clk 0:01:52]}  Nf6 {[%clk 0:02:03]} 13. Qf3 {[%clk 0:01:43]}  Bh2+ {[%clk 0:01:54]} 14. Kh1 {[%clk 0:01:41]}  Qf4 {[%clk 0:01:54]} 15. g3 {[%clk 0:00:56]}  Qxg5 {[%clk 0:01:54]} 16. Kxh2 {[%clk 0:00:56]}  h5 {[%clk 0:01:47]} 17. h4 {[%clk 0:00:53]}  Ng4+ {[%clk 0:01:45]} 18. Kg2 {[%clk 0:00:53]}  Qg7 {[%clk 0:01:44]} 19. Be4 {[%clk 0:00:51]}  O-O {[%clk 0:01:30]} 20. Bxb7 {[%clk 0:00:41]}  Bxb7 {[%clk 0:01:31]} 21. Qxb7 {[%clk 0:00:41]}  d5 {[%clk 0:01:31]} 22. Qe7 {[%clk 0:00:37]}  c4 {[%clk 0:01:14]} 23. Qg5 {[%clk 0:00:35]}  Rac8 {[%clk 0:01:02]} 24. Qxh5 {[%clk 0:00:19]}  f6 {[%clk 0:00:55]} 25. c3 {[%clk 0:00:19]}  Ne5 {[%clk 0:00:50]} 26. d4 {[%clk 0:00:17]}  cxd3 {[%clk 0:00:49]} 27. Bf4 {[%clk 0:00:18]}  Ng6 {[%clk 0:00:44]} 28. Bd6 {[%clk 0:00:15]}  Rfd8 {[%clk 0:00:38]} 29. Bc5 {[%clk 0:00:08]}  Nf4+ {[%clk 0:00:38]} 0-1


[Site "https://www.chess.com"]

[Event "Titled Tuesday Blitz August 15 Early 2023"]
[White "Gorovets, Andrey"]
[Black "Saito, Vinicius"]
[WhiteFideId "13504037"]
[BlackFideId "2113384"]
[WhiteElo "2694"]
[BlackElo "2351"]
[Result "1-0"]
[Round "2"]
[TimeControl "180+1"]
[Date "2023.08.15"]
[WhiteClock "0:00:36"]
[BlackClock "0:00:37"]
[Board "90"]

1. d4 {[%clk 0:02:55]}  Nf6 {[%clk 0:02:59]} 2. c4 {[%clk 0:02:56]}  g6 {[%clk 0:02:59]} 3. Nf3 {[%clk 0:02:53]}  Bg7 {[%clk 0:02:59]} 4. g3 {[%clk 0:02:53]}  O-O {[%clk 0:02:59]} 5. Bg2 {[%clk 0:02:53]}  d6 {[%clk 0:02:59]} 6. O-O {[%clk 0:02:53]}  Nbd7 {[%clk 0:03:00]} 7. Nc3 {[%clk 0:02:54]}  e5 {[%clk 0:03:00]} 8. e4 {[%clk 0:02:54]}  exd4 {[%clk 0:02:58]} 9. Nxd4 {[%clk 0:02:54]}  c6 {[%clk 0:02:58]} 10. h3 {[%clk 0:02:44]}  Qb6 {[%clk 0:02:57]} 11. Nce2 {[%clk 0:02:35]}  a5 {[%clk 0:02:51]} 12. Rb1 {[%clk 0:02:11]}  Nc5 {[%clk 0:02:49]} 13. f3 {[%clk 0:01:49]}  d5 {[%clk 0:02:20]} 14. cxd5 {[%clk 0:01:49]}  cxd5 {[%clk 0:02:20]} 15. e5 {[%clk 0:01:50]}  Ne8 {[%clk 0:02:01]} 16. f4 {[%clk 0:01:37]}  Nc7 {[%clk 0:02:01]} 17. Be3 {[%clk 0:01:35]}  Qa6 {[%clk 0:01:46]} 18. Qc2 {[%clk 0:01:20]}  N7e6 {[%clk 0:01:39]} 19. Nxe6 {[%clk 0:01:13]}  Nxe6 {[%clk 0:01:38]} 20. Bxd5 {[%clk 0:01:05]}  Bd7 {[%clk 0:01:37]} 21. Rfd1 {[%clk 0:01:01]}  Rfc8 {[%clk 0:01:33]} 22. Qd2 {[%clk 0:01:01]}  Bc6 {[%clk 0:01:26]} 23. Nc3 {[%clk 0:00:57]}  Rd8 {[%clk 0:01:20]} 24. Qg2 {[%clk 0:00:56]}  Bf8 {[%clk 0:01:15]} 25. Bxc6 {[%clk 0:00:52]}  bxc6 {[%clk 0:01:13]} 26. Ne4 {[%clk 0:00:50]}  Be7 {[%clk 0:01:11]} 27. Qf1 {[%clk 0:00:42]}  Qb7 {[%clk 0:00:48]} 28. b3 {[%clk 0:00:42]}  c5 {[%clk 0:00:44]} 29. Qg2 {[%clk 0:00:38]}  Nd4 {[%clk 0:00:43]} 30. Nf6+ {[%clk 0:00:35]}  Bxf6 {[%clk 0:00:37]} 31. Qxb7 {[%clk 0:00:36]} 1-0


[Site "https://www.chess.com"]

[Event "Titled Tuesday Blitz August 15 Early 2023"]
[White "Rian, Kapriaga"]
[Black "Hua, Lefong"]
[WhiteFideId "7103263"]
[BlackFideId "2602253"]
[WhiteElo "2343"]
[BlackElo "2691"]
[Result "0-1"]
[Round "2"]
[TimeControl "180+1"]
[Date "2023.08.15"]
[WhiteClock "0:00:00"]
[BlackClock "0:01:01"]
[Board "91"]

1. d4 {[%clk 0:02:59]}  Nf6 {[%clk 0:02:58]} 2. Nf3 {[%clk 0:02:58]}  g6 {[%clk 0:02:59]} 3. Bg5 {[%clk 0:02:57]}  Bg7 {[%clk 0:02:59]} 4. Nbd2 {[%clk 0:02:57]}  O-O {[%clk 0:02:59]} 5. e4 {[%clk 0:02:56]}  d6 {[%clk 0:03:00]} 6. Bd3 {[%clk 0:02:51]}  c5 {[%clk 0:03:00]} 7. dxc5 {[%clk 0:02:49]}  dxc5 {[%clk 0:03:00]} 8. O-O {[%clk 0:02:45]}  h6 {[%clk 0:02:54]} 9. Be3 {[%clk 0:02:37]}  Qc7 {[%clk 0:02:47]} 10. h3 {[%clk 0:02:33]}  b6 {[%clk 0:02:46]} 11. Qe2 {[%clk 0:02:32]}  Nc6 {[%clk 0:02:44]} 12. c3 {[%clk 0:02:29]}  Nh5 {[%clk 0:02:42]} 13. a4 {[%clk 0:02:18]}  Nf4 {[%clk 0:02:39]} 14. Bxf4 {[%clk 0:02:17]}  Qxf4 {[%clk 0:02:40]} 15. Rfe1 {[%clk 0:02:11]}  Be6 {[%clk 0:02:34]} 16. Bc4 {[%clk 0:02:06]}  Bxc4 {[%clk 0:02:31]} 17. Nxc4 {[%clk 0:02:05]}  Rfd8 {[%clk 0:02:26]} 18. Rad1 {[%clk 0:02:01]}  Qc7 {[%clk 0:02:17]} 19. e5 {[%clk 0:01:54]}  e6 {[%clk 0:02:11]} 20. Rd6 {[%clk 0:01:47]}  Bf8 {[%clk 0:02:04]} 21. Rxd8 {[%clk 0:01:30]}  Rxd8 {[%clk 0:02:05]} 22. Rd1 {[%clk 0:01:29]}  Rd5 {[%clk 0:01:59]} 23. Re1 {[%clk 0:00:56]}  Bg7 {[%clk 0:01:51]} 24. h4 {[%clk 0:00:51]}  Qd8 {[%clk 0:01:40]} 25. Qe4 {[%clk 0:00:41]}  Qd7 {[%clk 0:01:31]} 26. h5 {[%clk 0:00:37]}  g5 {[%clk 0:01:28]} 27. Ne3 {[%clk 0:00:34]}  Rd3 {[%clk 0:01:20]} 28. Ng4 {[%clk 0:00:31]}  Rd1 {[%clk 0:01:12]} 29. Rxd1 {[%clk 0:00:25]}  Qxd1+ {[%clk 0:01:13]} 30. Kh2 {[%clk 0:00:25]}  Qd5 {[%clk 0:01:13]} 31. Qe3 {[%clk 0:00:14]}  Kf8 {[%clk 0:01:11]} 32. Kg1 {[%clk 0:00:12]}  Qd1+ {[%clk 0:01:08]} 33. Kh2 {[%clk 0:00:12]}  Qxa4 {[%clk 0:01:08]} 34. Nf6 {[%clk 0:00:00]}  Qf4+ {[%clk 0:01:01]} 0-1


[Site "https://www.chess.com"]

[Event "Titled Tuesday Blitz August 15 Early 2023"]
[White "Akylbek2021"]
[Black "Papasimakopoulos, Alexandros"]
[BlackFideId "4244125"]
[WhiteElo "2327"]
[BlackElo "2682"]
[Result "1-0"]
[Round "2"]
[TimeControl "180+1"]
[Date "2023.08.15"]
[WhiteClock "0:00:54"]
[BlackClock "0:01:14"]
[Board "95"]

1. d4 {[%clk 0:03:00]}  e6 {[%clk 0:02:59]} 2. Bf4 {[%clk 0:02:59]}  d5 {[%clk 0:02:58]} 3. Nc3 {[%clk 0:03:00]}  Bd6 {[%clk 0:02:59]} 4. e3 {[%clk 0:03:00]}  Bxf4 {[%clk 0:02:58]} 5. exf4 {[%clk 0:03:01]}  Nf6 {[%clk 0:02:59]} 6. Nf3 {[%clk 0:03:01]}  O-O {[%clk 0:02:59]} 7. Bd3 {[%clk 0:03:01]}  b6 {[%clk 0:02:58]} 8. Ne2 {[%clk 0:02:59]}  Ba6 {[%clk 0:02:58]} 9. Bxa6 {[%clk 0:02:56]}  Nxa6 {[%clk 0:02:59]} 10. O-O {[%clk 0:02:56]}  c5 {[%clk 0:02:59]} 11. c3 {[%clk 0:02:56]}  Nb8 {[%clk 0:02:58]} 12. Ng3 {[%clk 0:02:54]}  Nc6 {[%clk 0:02:50]} 13. Re1 {[%clk 0:02:51]}  Qd6 {[%clk 0:02:50]} 14. Qd2 {[%clk 0:02:51]}  Rac8 {[%clk 0:02:49]} 15. f5 {[%clk 0:02:46]}  cxd4 {[%clk 0:02:37]} 16. fxe6 {[%clk 0:02:35]}  dxc3 {[%clk 0:02:33]} 17. exf7+ {[%clk 0:02:35]}  Rxf7 {[%clk 0:02:33]} 18. Qxc3 {[%clk 0:02:33]}  d4 {[%clk 0:02:28]} 19. Nf5 {[%clk 0:02:19]}  Qd7 {[%clk 0:02:11]} 20. N5xd4 {[%clk 0:02:11]}  Nxd4 {[%clk 0:02:08]} 21. Qxd4 {[%clk 0:02:09]}  Qxd4 {[%clk 0:02:08]} 22. Nxd4 {[%clk 0:02:10]}  Rd7 {[%clk 0:02:08]} 23. Nf5 {[%clk 0:02:06]}  Rc2 {[%clk 0:02:08]} 24. h3 {[%clk 0:01:47]}  Rxb2 {[%clk 0:02:05]} 25. a4 {[%clk 0:01:30]}  g6 {[%clk 0:02:04]} 26. Ne7+ {[%clk 0:01:27]}  Kf7 {[%clk 0:02:01]} 27. Nc6 {[%clk 0:01:27]}  Rdd2 {[%clk 0:02:01]} 28. Ne5+ {[%clk 0:01:26]}  Kg7 {[%clk 0:01:59]} 29. Nc4 {[%clk 0:01:26]}  Rxf2 {[%clk 0:01:59]} 30. Nxb2 {[%clk 0:01:26]}  Rxb2 {[%clk 0:02:00]} 31. Re7+ {[%clk 0:01:27]}  Kh6 {[%clk 0:02:00]} 32. Rxa7 {[%clk 0:01:28]}  Nd5 {[%clk 0:02:01]} 33. Rf7 {[%clk 0:01:17]}  Nc3 {[%clk 0:01:55]} 34. Kh2 {[%clk 0:01:10]}  Rb4 {[%clk 0:01:50]} 35. a5 {[%clk 0:01:08]}  bxa5 {[%clk 0:01:45]} 36. Rxa5 {[%clk 0:01:09]}  Ne4 {[%clk 0:01:45]} 37. Raa7 {[%clk 0:01:07]}  Ng5 {[%clk 0:01:45]} 38. Rfc7 {[%clk 0:01:07]}  Rd4 {[%clk 0:01:43]} 39. Kg3 {[%clk 0:01:03]}  Rd3+ {[%clk 0:01:42]} 40. Kf2 {[%clk 0:01:03]}  Rd4 {[%clk 0:01:42]} 41. Ke3 {[%clk 0:01:00]}  Re4+ {[%clk 0:01:42]} 42. Kd3 {[%clk 0:00:59]}  Rb4 {[%clk 0:01:42]} 43. Rcb7 {[%clk 0:00:57]}  Rh4 {[%clk 0:01:33]} 44. Rc7 {[%clk 0:00:56]}  Rb4 {[%clk 0:01:32]} 45. Rc4 {[%clk 0:00:56]}  Rb3+ {[%clk 0:01:23]} 46. Kc2 {[%clk 0:00:55]}  Rb4 {[%clk 0:01:14]} 47. Rxb4 {[%clk 0:00:54]} 1-0


[Site "https://www.chess.com"]

[Event "Titled Tuesday Blitz August 15 Early 2023"]
[White "Gubajdullin, Alexei"]
[Black "Preobrazhenska_D2011"]
[WhiteFideId "4141202"]
[WhiteElo "2682"]
[BlackElo "2311"]
[Result "1-0"]
[Round "2"]
[TimeControl "180+1"]
[Date "2023.08.15"]
[WhiteClock "0:00:44"]
[BlackClock "0:00:02"]
[Board "96"]

1. d4 {[%clk 0:02:55]}  Nf6 {[%clk 0:02:59]} 2. Nf3 {[%clk 0:02:55]}  b6 {[%clk 0:02:55]} 3. Bf4 {[%clk 0:02:55]}  Bb7 {[%clk 0:02:51]} 4. e3 {[%clk 0:02:55]}  e6 {[%clk 0:02:51]} 5. h3 {[%clk 0:02:55]}  d5 {[%clk 0:02:50]} 6. Nbd2 {[%clk 0:02:55]}  c5 {[%clk 0:02:49]} 7. c3 {[%clk 0:02:54]}  Nc6 {[%clk 0:02:48]} 8. Bd3 {[%clk 0:02:54]}  Be7 {[%clk 0:02:47]} 9. Ne5 {[%clk 0:02:54]}  O-O {[%clk 0:02:45]} 10. Qf3 {[%clk 0:02:51]}  Nxe5 {[%clk 0:02:39]} 11. dxe5 {[%clk 0:02:51]}  Nd7 {[%clk 0:02:35]} 12. h4 {[%clk 0:02:51]}  Qc7 {[%clk 0:02:23]} 13. Bxh7+ {[%clk 0:02:42]}  Kxh7 {[%clk 0:02:23]} 14. Qh5+ {[%clk 0:02:43]}  Kg8 {[%clk 0:02:23]} 15. Nf3 {[%clk 0:02:43]}  Rfc8 {[%clk 0:01:11]} 16. Ng5 {[%clk 0:02:39]}  Bxg5 {[%clk 0:01:11]} 17. hxg5 {[%clk 0:02:39]}  Kf8 {[%clk 0:01:12]} 18. g6 {[%clk 0:02:36]}  Ke7 {[%clk 0:00:20]} 19. gxf7 {[%clk 0:02:29]}  Nf8 {[%clk 0:00:14]} 20. Bg5+ {[%clk 0:02:02]}  Kd7 {[%clk 0:00:14]} 21. f4 {[%clk 0:01:58]}  d4 {[%clk 0:00:10]} 22. O-O-O {[%clk 0:01:52]}  Bxg2 {[%clk 0:00:06]} 23. Rhg1 {[%clk 0:01:50]}  Bd5 {[%clk 0:00:06]} 24. exd4 {[%clk 0:01:44]}  cxd4 {[%clk 0:00:06]} 25. Rxd4 {[%clk 0:01:44]}  Kc6 {[%clk 0:00:06]} 26. c4 {[%clk 0:01:34]}  Kb7 {[%clk 0:00:06]} 27. b3 {[%clk 0:01:35]}  g6 {[%clk 0:00:05]} 28. Qh8 {[%clk 0:01:29]}  Qxf7 {[%clk 0:00:05]} 29. Kb2 {[%clk 0:01:27]}  Bc6 {[%clk 0:00:05]} 30. Rgd1 {[%clk 0:01:25]}  Nd7 {[%clk 0:00:05]} 31. Qh3 {[%clk 0:01:17]}  Rh8 {[%clk 0:00:05]} 32. Qg3 {[%clk 0:01:14]}  Nc5 {[%clk 0:00:05]} 33. Bf6 {[%clk 0:01:13]}  Rh5 {[%clk 0:00:04]} 34. Ka3 {[%clk 0:01:11]}  Ne4 {[%clk 0:00:04]} 35. Qe3 {[%clk 0:01:11]}  Nxf6 {[%clk 0:00:04]} 36. exf6 {[%clk 0:01:10]}  Ra5+ {[%clk 0:00:05]} 37. Kb2 {[%clk 0:01:09]}  Qxf6 {[%clk 0:00:06]} 38. Qc3 {[%clk 0:01:08]}  Rf5 {[%clk 0:00:05]} 39. b4 {[%clk 0:01:08]}  Rc8 {[%clk 0:00:04]} 40. a4 {[%clk 0:01:06]}  Bg2 {[%clk 0:00:03]} 41. a5 {[%clk 0:01:03]}  Rxf4 {[%clk 0:00:03]} 42. Rxf4 {[%clk 0:01:02]}  Qxf4 {[%clk 0:00:04]} 43. a6+ {[%clk 0:01:01]}  Kb8 {[%clk 0:00:03]} 44. Rd7 {[%clk 0:01:00]}  Qf2+ {[%clk 0:00:04]} 45. Kb3 {[%clk 0:01:00]}  Bc6 {[%clk 0:00:03]} 46. Rg7 {[%clk 0:00:58]}  Qf5 {[%clk 0:00:03]} 47. Qg3+ {[%clk 0:00:55]}  Ka8 {[%clk 0:00:03]} 48. Rc7 {[%clk 0:00:55]}  Rd8 {[%clk 0:00:02]} 49. b5 {[%clk 0:00:54]}  Rd3+ {[%clk 0:00:02]} 50. Ka4 {[%clk 0:00:53]}  Rd8 {[%clk 0:00:02]} 51. Rxc6 {[%clk 0:00:52]}  Qf7 {[%clk 0:00:01]} 52. Qe5 {[%clk 0:00:47]}  Qf1 {[%clk 0:00:01]} 53. Rc8+ {[%clk 0:00:43]}  Rxc8 {[%clk 0:00:01]} 54. Qe4+ {[%clk 0:00:44]}  Kb8 {[%clk 0:00:02]} 55. Qb7# {[%clk 0:00:44]} 1-0


[Site "https://www.chess.com"]